bitfinex/quotes_SOLUSD_20250806
["timestamp","ask_amount","ask_price","bid_price","bid_amount"]
[1754502050749,6.17382837,168.65,168.64,6.69979127]
[1754502051640,6.17382837,168.65,168.64,5.98979127]
[1754502051850,3.98727354,168.69,168.65,0.14216157]
[1754502052034,6.17382837,168.69,168.66,0.71]
[1754502052228,6.17382837,168.69,168.67,5.92873658]
[1754502052426,4.60934068,168.69,168.67,5.92873658]
[1754502052827,4.69894425,168.71,168.67,5.92873658]
[1754502053061,6.17382837,168.7,168.68,0.71]
[1754502053582,6.17382837,168.69,168.67,5.92873658]
[1754502054454,6.17382837,168.69,168.67,0.71]
[1754502054666,6.17382837,168.69,168.66,20.75145917]
[1754502054869,6.17382837,168.69,168.66,21.46145917]
[1754502055067,6.17382837,168.69,168.67,0.25]
[1754502055268,4.70025539,168.71,168.67,0.25]
[1754502055486,6.17382837,168.69,168.67,0.96]
[1754502056357,6.17382837,168.69,168.68,5.9283851]
[1754502057960,6.17382837,168.69,168.67,0.96]
[1754502057961,6.17382837,168.69,168.67,6.17862509]
[1754502058164,6.17382837,168.68,168.67,6.17862509]
[1754502060996,6.17382837,168.68,168.67,0.25]
[1754502061278,6.88382837,168.68,168.67,0.25]
[1754502062882,10.87477986,168.68,168.67,0.25]
[1754502063291,16.80316496,168.68,168.67,0.25]
[1754502063450,26.0,168.65,168.64,0.06]
[1754502063650,36.16477986,168.65,168.64,0.06]
[1754502063877,36.87477986,168.65,168.64,0.06]
[1754502064370,42.80421952,168.65,168.64,0.06]
[1754502065855,47.44411553,168.65,168.64,0.06]
[1754502066758,42.80421952,168.65,168.64,0.06]
[1754502068885,57.91043509,168.65,168.64,0.06]
[1754502069082,6.17382837,168.63,168.62,0.06]
[1754502069277,47.65382837,168.63,168.62,0.06]
[1754502069481,51.35477986,168.63,168.62,0.06]
[1754502070586,57.28492277,168.63,168.62,0.06]
[1754502071463,47.36382837,168.63,168.62,0.06]
[1754502071673,0.71,168.66,168.62,0.77]
[1754502071886,6.17382837,168.64,168.62,0.06]
[1754502072185,47.65382837,168.65,168.62,0.06]
[1754502072401,47.65382837,168.65,168.63,0.71]
[1754502072698,6.17382837,168.65,168.64,0.71]
[1754502073404,6.17382837,168.65,168.62,0.77]
[1754502073697,6.17382837,168.63,168.62,0.06]
[1754502073871,6.17382837,168.63,168.62,0.77]
[1754502077270,6.17382837,168.63,168.62,0.06]
[1754502079675,145.9,168.64,168.62,0.06]
[1754502079880,6.17382837,168.63,168.62,0.06]
[1754502080398,145.9,168.64,168.62,0.06]
[1754502080592,145.9,168.64,168.63,0.66]
[1754502080794,152.07382837,168.64,168.63,0.66]
[1754502081502,6.17382837,168.64,168.63,0.66]
[1754502083650,6.17382837,168.64,168.62,0.06]
[1754502083781,6.17382837,168.63,168.62,0.06]
[1754502084105,6.17382837,168.63,168.62,0.72]
[1754502084686,6.17382837,168.63,168.62,0.06]
[1754502086606,6.17382837,168.63,168.62,0.72]
[1754502087313,152.07382837,168.63,168.62,0.72]
[1754502087793,152.07382837,168.63,168.62,0.06]
[1754502088880,152.07382837,168.63,168.62,0.72]
[1754502089288,145.9,168.63,168.62,0.72]
[1754502089500,152.07382837,168.63,168.62,0.72]
[1754502090493,0.03,168.69,168.62,12.82432297]
[1754502090692,6.20382837,168.69,168.64,6.17382837]
[1754502090892,0.03,168.69,168.65,0.66]
[1754502091094,0.03,168.69,168.66,12.10291647]
[1754502091296,6.17382837,168.68,168.66,5.9290881]
[1754502091619,0.03,168.69,168.66,5.9290881]
[1754502091620,6.17382837,168.67,168.66,5.9290881]
[1754502092295,0.03,168.69,168.66,6.5890881]
[1754502092496,6.20382837,168.69,168.67,0.66]
[1754502093018,0.03,168.69,168.68,5.9283851]
[1754502093191,0.03,168.69,168.68,6.5883851]
[1754502093905,6.20382837,168.69,168.68,0.66]
[1754502094108,6.20382837,168.69,168.67,5.92861782]
[1754502094303,6.20382837,168.69,168.67,6.58861782]
[1754502095800,6.17382837,168.68,168.65,6.58943966]
[1754502095992,6.17382837,168.68,168.65,5.92943966]
[1754502096208,6.17382837,168.68,168.66,0.66]
[1754502097837,6.17382837,168.68,168.66,6.58876155]
[1754502098724,6.20382837,168.69,168.67,0.66]
[1754502099952,6.20382837,168.69,168.67,6.58860253]
[1754502101425,10.19130444,168.69,168.67,6.58860253]
[1754502103912,10.19130444,168.69,168.68,0.66]
[1754502104239,0.03,168.69,168.68,6.5883851]
[1754502111543,4.67253126,168.76,168.68,13.04653661]
[1754502111734,6.17382837,168.78,168.71,0.28432314]
[1754502112058,6.17382837,168.78,168.72,0.71]
[1754502112227,0.66,168.77,168.72,0.71]
[1754502112426,6.17382837,168.75,168.72,0.71]
[1754502112631,6.17382837,168.74,168.7,0.71]
[1754502112937,6.17382837,168.73,168.71,5.92733092]
[1754502113145,6.17382837,168.74,168.71,5.92733092]
[1754502113330,6.17382837,168.74,168.72,0.71]
[1754502113525,6.17382837,168.74,168.71,6.63733092]
[1754502114222,4.64162681,168.76,168.71,6.63733092]
[1754502114223,4.64162681,168.76,168.71,5.92733092]
[1754502114435,6.17382837,168.75,168.72,0.71]
[1754502114654,6.17382837,168.75,168.73,0.71]
[1754502114853,41.98,168.77,168.74,0.71]
[1754502115055,0.66,168.83,168.76,6.17382837]
[1754502115238,42.06,168.82,168.77,0.71]
[1754502115434,10.15447831,168.81,168.78,0.71]
[1754502115651,6.17382837,168.8,168.76,0.71]
[1754502116243,10.15447831,168.81,168.77,0.71]
[1754502116432,42.72,168.82,168.77,0.71]
[1754502116653,6.17382837,168.81,168.78,0.71]
[1754502116856,6.17382837,168.81,168.76,6.17382837]
[1754502117043,6.17382837,168.81,168.79,6.63432473]
[1754502117238,6.17382837,168.81,168.78,6.63482864]
[1754502117442,42.72,168.82,168.78,5.92482864]
[1754502117644,6.17382837,168.79,168.74,6.88382837]
[1754502117848,6.17382837,168.78,168.75,6.63592592]
[1754502118155,6.17382837,168.79,168.76,0.71]
[1754502119228,6.17382837,168.79,168.77,5.92522367]
[1754502119463,6.17382837,168.78,168.74,0.71]
[1754502120250,6.17382837,168.78,168.74,6.63627711]
[1754502120558,6.17382837,168.77,168.74,5.92627711]
[1754502120759,6.17382837,168.75,168.71,0.71]
[1754502121059,0.66,168.74,168.7,6.63768227]
[1754502121257,6.17382837,168.73,168.71,0.71]
[1754502121572,6.17382837,168.73,168.7,5.92768227]
[1754502121735,6.17382837,168.71,168.69,5.92795106]
[1754502121931,6.17382837,168.7,168.67,5.92873658]
[1754502122260,6.17382837,168.68,168.67,5.92873658]
[1754502122646,6.17382837,168.68,168.64,6.63979127]
[1754502122978,6.17382837,168.67,168.65,0.71]
[1754502123341,6.17382837,168.67,168.66,5.9290881]
[1754502123541,42.74,168.72,168.66,6.6390881]
[1754502123742,6.17382837,168.69,168.67,0.71]
[1754502124376,42.12,168.72,168.68,0.71]
[1754502124586,6.17382837,168.7,168.66,12.10291647]
[1754502124739,6.17382837,168.7,168.69,0.71]
[1754502125381,6.17382837,168.7,168.69,6.63803367]
[1754502126375,6.17382837,168.7,168.69,5.92803367]
[1754502127345,6.17382837,168.7,168.68,5.9283851]
[1754502127576,6.17382837,168.69,168.68,5.9283851]
[1754502127776,6.83382837,168.69,168.66,5.92901849]
[1754502127935,6.17382837,168.67,168.66,5.92901849]
[1754502128137,26.0,168.72,168.66,5.92901849]
[1754502128438,6.17382837,168.67,168.66,5.92901849]
[1754502129780,0.66,168.7,168.66,5.92901849]
[1754502129980,6.17382837,168.67,168.66,6.63901849]
[1754502130139,6.17382837,168.68,168.66,6.63901849]
[1754502130343,68.08,168.72,168.66,5.92901849]
[1754502130542,42.08,168.72,168.67,0.71]
[1754502130846,6.17382837,168.7,168.67,0.71]
[1754502131361,6.17382837,168.69,168.66,20.75173875]
[1754502131666,6.17382837,168.69,168.68,5.9283851]
[1754502132738,0.66,168.71,168.68,5.9283851]
[1754502132941,6.17382837,168.69,168.68,5.9283851]
[1754502133137,6.17382837,168.7,168.68,6.6383851]
[1754502133371,42.74,168.74,168.69,0.71]
[1754502133561,42.08,168.74,168.7,0.71]
[1754502133873,6.17382837,168.71,168.68,0.71]
[1754502134045,6.17382837,168.7,168.68,0.71]
[1754502134782,6.17382837,168.7,168.69,5.92803367]
[1754502135074,6.17382837,168.71,168.69,5.92803367]
[1754502135282,6.17382837,168.72,168.7,0.71]
[1754502137278,6.17382837,168.72,168.71,5.92733092]
[1754502138473,6.83382837,168.72,168.71,5.92733092]
[1754502138942,6.83382837,168.72,168.67,5.92873658]
[1754502139145,6.17382837,168.69,168.67,5.92873658]
[1754502139349,0.68,168.71,168.66,20.75121919]
[1754502139549,6.17382837,168.69,168.67,0.7]
[1754502140061,6.17382837,168.69,168.68,0.7]
[1754502140548,6.17382837,168.69,168.68,6.6283851]
[1754502140746,6.17382837,168.69,168.68,5.9283851]
[1754502142652,6.17382837,168.69,168.67,5.92873658]
[1754502143568,0.68,168.71,168.67,5.92873658]
[1754502143951,6.17382837,168.69,168.67,0.7]
[1754502146300,6.17382837,168.69,168.68,5.9283851]
[1754502147798,145.9,168.73,168.68,0.7]
[1754502148092,6.17382837,168.71,168.69,0.7]
[1754502148885,6.17382837,168.71,168.66,20.99595946]
[1754502149087,6.17382837,168.7,168.67,0.7]
[1754502149296,6.17382837,168.7,168.66,20.99595946]
[1754502149498,6.17382837,168.7,168.68,0.7]
[1754502149788,6.17382837,168.7,168.67,5.92873658]
[1754502149965,6.17382837,168.69,168.67,6.62873658]
[1754502151388,6.17382837,168.7,168.68,0.7]
[1754502151589,6.17382837,168.69,168.67,20.75057804]
[1754502152267,6.17382837,168.68,168.67,5.92873658]
[1754502154579,6.17382837,168.68,168.65,5.92943966]
[1754502154789,6.17382837,168.67,168.65,6.62943966]
[1754502155402,146.1,168.71,168.65,5.92943966]
[1754502155598,6.17382837,168.68,168.66,0.7]
[1754502156097,6.17382837,168.68,168.65,5.92943966]
[1754502156324,6.17382837,168.68,168.65,6.62943966]
[1754502156475,0.2,168.7,168.65,6.62943966]
[1754502156680,6.17382837,168.68,168.66,0.7]
[1754502157104,6.17382837,168.68,168.65,5.92943966]
[1754502157303,6.17382837,168.68,168.65,6.62943966]
[1754502157697,6.17382837,168.68,168.66,0.7]
[1754502158007,6.17382837,168.68,168.65,5.92943966]
[1754502158008,6.17382837,168.67,168.65,6.62943966]
[1754502159195,6.17382837,168.67,168.66,0.7]
[1754502159413,6.17382837,168.68,168.66,0.7]
[1754502160109,6.17382837,168.68,168.67,5.92873658]
[1754502162481,6.17382837,168.68,168.66,5.9290881]
[1754502162683,6.17382837,168.67,168.66,5.9290881]
[1754502162881,4.67330777,168.7,168.66,6.6290881]
[1754502163082,6.17382837,168.67,168.66,6.6290881]
[1754502163480,4.67575818,168.7,168.66,6.6290881]
[1754502163683,6.17382837,168.67,168.66,6.6290881]
[1754502164789,6.17382837,168.69,168.66,21.45180836]
[1754502165113,152.10382837,168.71,168.67,42.6]
[1754502165296,152.10382837,168.71,168.68,0.7]
[1754502165607,6.17382837,168.7,168.68,0.7]
[1754502166604,6.85382837,168.69,168.66,47.8090881]
[1754502166810,6.17382837,168.67,168.66,47.8090881]
[1754502166997,6.17382837,168.67,168.66,48.5090881]
[1754502167193,4.00139645,168.7,168.66,48.5090881]
[1754502167395,6.17382837,168.69,168.67,0.7]
[1754502167597,10.17501751,168.7,168.68,0.7]
[1754502167802,145.93,168.71,168.69,0.7]
[1754502167996,6.17382837,168.7,168.69,0.7]
[1754502168500,145.93,168.71,168.7,5.92768227]
[1754502168703,156.10502675,168.71,168.7,5.92768227]
[1754502168914,149.93119838,168.71,168.7,5.92768227]
[1754502169227,0.03,168.71,168.7,6.60768227]
[1754502169721,0.03,168.71,168.7,12.78151064]
[1754502169899,6.17382837,168.76,168.7,27.60071633]
[1754502170100,3.99903706,168.75,168.71,6.85382837]
[1754502170294,3.99757604,168.75,168.72,42.64]
[1754502170622,6.17382837,168.76,168.73,5.92662834]
[1754502170792,3.99757604,168.75,168.73,6.60662834]
[1754502171405,6.17382837,168.76,168.74,0.68]
[1754502171589,41.99,168.79,168.74,0.68]
[1754502171800,6.17382837,168.76,168.74,0.68]
[1754502172014,10.17022312,168.75,168.73,5.92662834]
[1754502172217,6.17382837,168.75,168.73,5.92662834]
[1754502172598,10.17022312,168.75,168.73,5.92662834]
[1754502172796,6.17382837,168.75,168.73,5.92662834]
[1754502172994,10.89022312,168.74,168.73,5.92662834]
[1754502173199,6.89382837,168.74,168.71,5.92733092]
[1754502173429,6.17382837,168.73,168.71,5.92733092]
[1754502173802,6.17382837,168.73,168.71,6.60733092]
[1754502173998,6.17382837,168.73,168.71,5.92733092]
[1754502174613,6.17382837,168.73,168.71,6.60733092]
[1754502175603,3.9952315,168.75,168.71,5.92733092]
[1754502175808,6.17382837,168.73,168.71,6.60733092]
[1754502178411,145.9,168.74,168.71,6.60733092]
[1754502178830,6.17382837,168.73,168.71,5.92733092]
[1754502179731,6.17382837,168.72,168.71,5.92733092]
[1754502180835,6.89382837,168.72,168.67,48.58873658]
[1754502181012,6.17382837,168.68,168.67,48.58873658]
[1754502181214,6.17382837,168.69,168.67,48.58873658]
[1754502182116,42.7,168.73,168.68,0.68]
[1754502182306,6.17382837,168.69,168.68,0.68]
[1754502182743,6.17382837,168.69,168.67,47.90873658]
[1754502183039,6.17382837,168.69,168.67,48.58873658]
[1754502183343,6.17382837,168.68,168.67,48.58873658]
[1754502183633,6.17382837,168.69,168.67,48.58873658]
[1754502184414,6.17382837,168.68,168.67,47.90873658]
[1754502185709,6.89382837,168.68,168.66,0.06]
[1754502185915,6.89382837,168.67,168.66,0.06]
[1754502186422,6.17382837,168.67,168.66,0.06]
[1754502186937,6.17382837,168.67,168.66,5.9890881]
[1754502187233,6.17382837,168.68,168.66,6.6690881]
[1754502187438,6.17382837,168.68,168.67,0.68]
[1754502187921,6.17382837,168.68,168.67,6.60873658]
[1754502188324,4.74381137,168.71,168.67,6.60873658]
[1754502188526,6.17382837,168.7,168.68,0.68]
[1754502188728,6.17382837,168.7,168.69,0.68]
[1754502189243,6.17382837,168.7,168.67,6.60873658]
[1754502189421,6.17382837,168.69,168.68,0.68]
[1754502189621,6.17382837,168.69,168.67,5.92873658]
[1754502189820,6.17382837,168.68,168.67,5.92873658]
[1754502190640,6.17382837,168.68,168.67,6.60873658]
[1754502190828,6.17382837,168.7,168.67,48.54873658]
[1754502191035,6.17382837,168.7,168.68,0.68]
[1754502191348,0.03,168.71,168.68,6.85382837]
[1754502191653,0.03,168.71,168.69,6.17382837]
[1754502191942,0.03,168.71,168.7,41.94]
[1754502192136,0.03,168.71,168.7,48.79382837]
[1754502193140,0.03,168.71,168.7,48.54768227]
[1754502195228,0.03,168.71,168.7,54.72151064]
[1754502195619,0.03,168.71,168.7,48.54768227]
[1754502195819,0.03,168.71,168.7,54.72151064]
[1754502197820,6.17382837,168.76,168.7,69.54071633]
[1754502198135,152.07382837,168.76,168.71,6.85382837]
[1754502198323,152.07382837,168.76,168.72,41.92]
[1754502198522,145.9,168.76,168.72,41.92]
[1754502198746,152.07382837,168.76,168.73,0.68]
[1754502199454,145.9,168.76,168.74,5.92627711]
[1754502199954,152.79382837,168.76,168.74,5.92627711]
[1754502200745,26.72,168.8,168.75,0.65]
[1754502200944,6.17382837,168.76,168.74,5.92627711]
[1754502201127,6.89382837,168.76,168.74,5.92627711]
[1754502201654,6.17382837,168.76,168.73,5.92662834]
[1754502201849,6.17382837,168.76,168.73,6.57662834]
[1754502202055,6.17382837,168.77,168.74,0.65]
[1754502202435,6.17382837,168.78,168.74,0.65]
[1754502202637,10.88326984,168.8,168.75,6.82382837]
[1754502202942,6.17382837,168.79,168.74,48.07382837]
[1754502203143,6.89382837,168.79,168.75,0.65]
[1754502203535,6.89382837,168.79,168.76,5.92557478]
[1754502203951,6.17382837,168.79,168.76,6.57557478]
[1754502204124,6.89382837,168.79,168.76,5.92557478]
[1754502205046,0.72,168.78,168.76,5.92557478]
[1754502205427,6.17382837,168.79,168.76,5.92557478]
[1754502205634,6.17382837,168.79,168.75,20.74063897]
[1754502205853,6.89382837,168.79,168.75,20.74063897]
[1754502206059,0.72,168.78,168.75,20.74063897]
[1754502206363,6.89382837,168.78,168.75,20.74063897]
[1754502207035,6.17382837,168.78,168.75,21.39063897]
[1754502207424,6.17382837,168.78,168.75,20.74063897]
[1754502207636,6.89382837,168.78,168.75,5.92592592]
[1754502209244,0.72,168.78,168.75,5.92592592]
[1754502209559,6.89382837,168.78,168.75,5.92592592]
[1754502209942,6.92382837,168.78,168.75,5.92592592]
[1754502211764,6.92382837,168.78,168.75,6.57592592]
[1754502212162,6.89382837,168.77,168.75,5.92592592]
[1754502212540,6.17382837,168.77,168.75,5.92592592]
[1754502212741,0.03,168.78,168.75,5.92592592]
[1754502212944,6.17382837,168.77,168.75,5.92592592]
[1754502214166,0.03,168.78,168.75,6.57592592]
[1754502214346,6.17382837,168.77,168.75,6.57592592]
[1754502215966,0.03,168.78,168.76,0.65]
[1754502216156,0.03,168.78,168.77,5.92522367]
[1754502216862,0.03,168.78,168.77,6.57522367]
[1754502223052,0.03,168.78,168.77,5.92522367]
[1754502224262,0.03,168.78,168.76,5.92557478]
[1754502224874,0.03,168.78,168.76,6.57557478]
[1754502225079,0.03,168.78,168.77,0.65]
[1754502226162,0.03,168.78,168.77,6.57522367]
[1754502227277,0.03,168.78,168.77,5.92522367]
[1754502228061,0.03,168.78,168.77,6.57522367]
[1754502229771,0.03,168.78,168.77,5.92522367]
[1754502230280,0.03,168.78,168.77,6.62522367]
[1754502236199,0.03,168.78,168.77,5.92522367]
[1754502237283,0.03,168.78,168.77,6.62522367]
[1754502240089,0.03,168.78,168.77,5.92522367]
[1754502240296,6.20382837,168.78,168.76,5.92546452]
[1754502240499,10.89857982,168.78,168.76,5.92546452]
[1754502240672,0.03,168.78,168.76,5.92546452]
[1754502240877,6.20382837,168.78,168.76,6.62546452]
[1754502241299,10.19912673,168.78,168.76,6.62546452]
[1754502242199,4.02529836,168.78,168.76,6.62546452]
[1754502242500,0.03,168.78,168.76,6.62546452]
[1754502243497,0.03,168.78,168.77,0.7]
[1754502244003,0.03,168.78,168.77,48.51382837]
[1754502244389,0.03,168.78,168.77,54.43905204]
[1754502246883,1e-08,168.78,168.77,54.43905204]
[1754502248984,1e-08,168.78,168.77,54.39905204]
[1754502249812,1e-08,168.78,168.77,48.22522367]
[1754502249996,1e-08,168.78,168.77,54.39905204]
[1754502255810,1e-08,168.78,168.77,53.69905204]
[1754502255996,1e-08,168.78,168.77,5.92522367]
[1754502256205,6.17382838,168.78,168.77,5.92522367]
[1754502256401,6.87382838,168.78,168.75,5.92592592]
[1754502256712,6.87382837,168.77,168.75,47.52592592]
[1754502257810,0.7,168.77,168.75,47.52592592]
[1754502258022,1e-08,168.78,168.75,47.52592592]
[1754502258229,10.86707297,168.78,168.75,47.52592592]
[1754502258513,6.87382838,168.78,168.75,47.52592592]
[1754502258923,10.16835883,168.78,168.75,48.20592592]
[1754502259499,10.16835883,168.78,168.76,0.68]
[1754502259693,10.16835883,168.78,168.75,47.52592592]
[1754502259694,1e-08,168.78,168.77,48.45382837]
[1754502261089,1e-08,168.78,168.77,48.20522367]
[1754502261319,1e-08,168.78,168.77,54.37905204]
[1754502263598,1e-08,168.78,168.77,69.76959075]
[1754502266249,1e-08,168.78,168.77,73.76412175]
[1754502266610,1e-08,168.78,168.77,69.76959075]
[1754502267639,1e-08,168.78,168.77,62.63143924]
[1754502267812,1e-08,168.78,168.77,69.48526761]
[1754502269926,1e-08,168.78,168.77,62.63143924]
[1754502270329,1e-08,168.78,168.77,47.52522367]
[1754502270553,1e-08,168.78,168.77,69.48526761]
[1754502270723,1e-08,168.78,168.77,69.76959075]
[1754502271214,1e-08,168.78,168.77,73.76314475]
[1754502272130,1e-08,168.78,168.77,69.76959075]
[1754502273043,1e-08,168.78,168.77,63.59576238]
[1754502273211,1e-08,168.78,168.77,69.76959075]
[1754502274136,1e-08,168.8,168.77,84.58264994]
[1754502274442,1e-08,168.8,168.79,21.56436708]
[1754502274636,1e-08,168.8,168.79,63.14436708]
[1754502274938,1e-08,168.8,168.79,63.82436708]
[1754502275716,1e-08,168.8,168.79,70.70819608]
[1754502276117,1e-08,168.8,168.79,70.4588893]
[1754502276330,1e-08,168.8,168.79,76.63271767]
[1754502277044,1e-08,168.8,168.79,69.74888867]
[1754502277413,1e-08,168.8,168.79,62.61073716]
[1754502277627,1e-08,168.8,168.79,68.78456553]
[1754502278331,1e-08,168.8,168.79,69.46456553]
[1754502279523,1e-08,168.8,168.79,68.78456553]
[1754502280134,1e-08,168.8,168.79,62.61073716]
[1754502280441,1e-08,168.8,168.79,47.50452159]
[1754502280627,0.71000001,168.8,168.79,47.50452159]
[1754502281542,1e-08,168.8,168.79,47.50452159]
[1754502283263,0.71000001,168.8,168.79,47.50452159]
[1754502283767,1e-08,168.8,168.79,47.50452159]
[1754502286927,0.71000001,168.8,168.79,47.50452159]
[1754502287742,1e-08,168.8,168.79,47.50452159]
[1754502291369,0.68000001,168.8,168.79,47.50452159]
[1754502291665,0.68000001,168.8,168.79,41.58]
[1754502291967,6.85382838,168.8,168.79,41.58]
[1754502292347,1e-08,168.8,168.79,42.27]
[1754502292839,1e-08,168.8,168.79,41.58]
[1754502293040,1e-08,168.8,168.79,47.50452159]
[1754502293666,0.68000001,168.8,168.79,41.58]
[1754502294046,6.85382838,168.8,168.77,5.92511109]
[1754502294364,6.85382837,168.79,168.78,41.58]
[1754502295843,6.85382837,168.79,168.76,5.92546815]
[1754502296037,6.85382837,168.78,168.77,41.58]
[1754502297864,0.68000001,168.8,168.77,47.50509747]
[1754502298058,6.17382837,168.78,168.77,47.50509747]
[1754502298568,1e-08,168.8,168.77,48.19509747]
[1754502298759,6.17382838,168.8,168.77,48.19509747]
[1754502298943,10.16762014,168.8,168.77,48.19509747]
[1754502299270,6.17382838,168.8,168.77,48.19509747]
[1754502299572,10.16762014,168.8,168.77,48.19509747]
[1754502299747,1e-08,168.8,168.77,48.19509747]
[1754502300066,3.99379177,168.8,168.77,48.19509747]
[1754502300247,6.17382837,168.79,168.77,48.19509747]
[1754502300571,6.17382837,168.79,168.77,47.50509747]
[1754502301066,6.17382837,168.79,168.77,48.19509747]
[1754502301568,6.17382837,168.79,168.78,6.61477839]
[1754502301959,6.17382837,168.79,168.78,5.92477839]
[1754502304556,3.99595059,168.8,168.78,5.92477839]
[1754502304872,6.17382837,168.79,168.78,5.92477839]
[1754502305051,1e-08,168.8,168.78,6.61477839]
[1754502305248,1e-08,168.8,168.79,42.27]
[1754502306774,1e-08,168.8,168.79,48.19452159]
[1754502307076,1e-08,168.8,168.79,54.36834996]
[1754502307753,1e-08,168.8,168.79,69.75888867]
[1754502309159,1e-08,168.8,168.79,79.92621467]
[1754502321865,0.7827195,168.87,168.85,15.10621557]
[1754502322060,1.4427195,168.87,168.86,41.58]
[1754502323192,1.4427195,168.87,168.86,47.50206561]
[1754502323385,0.7827195,168.87,168.86,53.67589398]
[1754502323686,0.2827195,168.87,168.86,53.67589398]
[1754502324294,0.2827195,168.87,168.86,47.50206561]
[1754502324469,0.2827195,168.87,168.86,53.67589398]
[1754502324857,0.2827195,168.87,168.86,54.33589398]
[1754502325062,0.2827195,168.87,168.86,53.67589398]
[1754502325286,0.2827195,168.87,168.86,69.72643269]
[1754502325699,0.2827195,168.87,168.86,73.70633469]
[1754502327269,1e-08,168.87,168.86,73.70633469]
[1754502329201,1e-08,168.87,168.86,99.70633469]
[1754502333201,6.17382837,168.93,168.89,15.10621557]
[1754502333393,6.17382837,168.93,168.9,41.56]
[1754502333709,6.17382837,168.93,168.91,41.56]
[1754502335000,6.17382837,168.94,168.92,5.91996211]
[1754502335208,0.12,168.93,168.92,5.91996211]
[1754502338310,6.29382837,168.94,168.92,5.91996211]
[1754502339515,6.29382837,168.94,168.91,47.48019314]
[1754502339694,145.9,168.95,168.87,17.787792]
[1754502340003,6.17382837,168.89,168.87,41.54]
[1754502340409,6.17382837,168.9,168.87,42.2]
[1754502340710,6.17382837,168.91,168.88,0.66]
[1754502341101,6.17382837,168.91,168.89,5.92101367]
[1754502341782,6.17382837,168.9,168.88,5.92122643]
[1754502342121,6.29382837,168.9,168.88,5.92122643]
[1754502343124,6.29382837,168.89,168.86,0.06]
[1754502343420,6.17382837,168.87,168.86,0.06]
[1754502343593,6.17382837,168.9,168.86,0.06]
[1754502343793,6.17382837,168.87,168.86,0.06]
[1754502344313,6.17382837,168.87,168.86,5.98206561]
[1754502344894,6.17382837,168.88,168.86,6.64206561]
[1754502345093,6.17382837,168.88,168.86,48.18206561]
[1754502345820,6.17382837,168.87,168.86,41.6]
[1754502345986,6.17382837,168.87,168.86,0.06]
[1754502345987,6.29382837,168.87,168.86,0.06]
[1754502346903,6.17382837,168.87,168.86,0.06]
[1754502347821,12.21554329,168.87,168.86,0.06]
[1754502348007,6.29382837,168.87,168.86,0.06]
[1754502348206,10.27236815,168.87,168.86,0.06]
[1754502349635,16.19408307,168.87,168.86,0.06]
[1754502349823,16.19408307,168.87,168.84,0.06]
[1754502350017,6.17382837,168.85,168.84,0.06]
[1754502350233,10.15536948,168.85,168.84,0.06]
[1754502350439,10.27536948,168.85,168.78,0.06]
[1754502350633,6.17382837,168.79,168.78,0.06]
[1754502351621,6.17382837,168.79,168.78,26.06]
[1754502352443,6.29382837,168.79,168.78,26.06]
[1754502352618,6.29382837,168.79,168.78,0.06]
[1754502352934,12.21834996,168.79,168.78,0.06]
[1754502353139,6.29382837,168.79,168.78,0.06]
[1754502353750,12.21834996,168.79,168.78,0.06]
[1754502354326,16.20382845,168.79,168.78,0.06]
[1754502357626,16.20382845,168.79,168.76,0.06]
[1754502357960,6.17382837,168.77,168.76,0.06]
[1754502359129,12.09905204,168.77,168.76,0.06]
[1754502359439,53.77905204,168.77,168.76,0.06]
[1754502360818,53.65905204,168.77,168.76,0.06]
[1754502362340,47.73382837,168.77,168.76,0.06]
[1754502362822,6.17382837,168.77,168.76,0.06]
[1754502363027,6.04335028,168.83,168.76,0.76]
[1754502363238,6.17382837,168.77,168.76,0.76]
[1754502363425,6.17382837,168.77,168.73,20.62311233]
[1754502363934,6.17382837,168.77,168.76,0.06]
[1754502364353,42.22,168.81,168.76,0.06]
[1754502364531,6.17382837,168.77,168.76,0.06]
[1754502364938,145.9,168.8,168.76,0.06]
[1754502365145,6.17382837,168.77,168.76,0.06]
[1754502365938,6.17382837,168.77,168.76,0.76]
[1754502366642,6.17382837,168.77,168.76,6.68557478]
[1754502367243,6.17382837,168.77,168.76,0.76]
[1754502368063,146.56,168.8,168.76,0.76]